fUST/lending_fUST_20251010
["ID","MTS","AMOUNT","RATE_DAILY","PERIOD"]
[390575134,1760091034435,-500.0,0.00016438,2]
[390575135,1760091034444,-500.0,0.00016438,2]
[390575136,1760091034453,-500.0,0.00016438,2]
[390575137,1760091034463,-500.0,0.00016438,2]
[390575138,1760091034472,-504.34810435,0.00016438,2]
[390575139,1760091034481,-487.08560304,0.00016438,2]
[390575140,1760091034490,-500.0,0.00016438,2]
[390575141,1760091034499,-500.0,0.00016438,2]
[390575142,1760091034508,-905.33,0.00016438,2]
[390575143,1760091034518,-805.24,0.00016438,2]
[390575144,1760091034527,-500.0,0.00016438,2]
[390575145,1760091034536,-501.08911535,0.00016438,2]
[390575146,1760091034546,-500.0,0.00016438,2]
[390575147,1760091034555,-500.0,0.00016438,2]
[390575148,1760091034565,-500.0,0.00016438,2]
[390575149,1760091034574,-500.0,0.00016438,2]
[390575150,1760091034584,-500.0,0.00016438,2]
[390575151,1760091034593,-500.0,0.00016438,2]
[390575152,1760091034602,-500.0,0.00016438,2]
[390575153,1760091034611,-151.0,0.00016438,2]
[390575154,1760091034620,-500.0,0.00016438,2]
[390575155,1760091034629,-500.0,0.00016438,2]
[390575156,1760091034638,-525.95554354,0.00016438,2]
[390575157,1760091034647,-500.0,0.00016438,2]
[390575158,1760091034656,-500.0,0.00016438,2]
[390575159,1760091034665,-502.50529081,0.00016438,2]
[390575160,1760091034674,-500.0,0.00016438,2]
[390575161,1760091034683,-500.0,0.00016438,2]
[390575162,1760091034692,-1328.9,0.00016438,2]
[390575163,1760091034702,-502.20049558,0.00016438,2]
[390575164,1760091034714,-500.0,0.00016438,2]
[390575165,1760091034723,-500.0,0.00016438,2]
[390575166,1760091034733,-500.0,0.00016438,2]
[390575167,1760091034742,-500.0,0.00016438,2]
[390575168,1760091034753,-500.0,0.00016438,2]
[390575169,1760091034762,-501.77055061,0.00016438,2]
[390575170,1760091034772,-937.71,0.00016438,2]
[390575171,1760091034781,-463.59171238,0.00016438,2]
[390575172,1760091034791,-500.0,0.00016438,2]
[390575173,1760091034800,-500.0,0.00016438,2]
[390575174,1760091034809,-500.0,0.00016438,2]
[390575175,1760091034818,-500.0,0.00016438,2]
[390575176,1760091034827,-500.0,0.00016438,2]
[390575177,1760091034836,-500.0,0.00016438,2]
[390575178,1760091034846,-500.0,0.00016438,2]
[390575179,1760091034855,-500.0,0.00016438,2]
[390575180,1760091034864,-500.0,0.00016438,2]
[390575181,1760091034873,-500.0,0.00016438,2]
[390575182,1760091034882,-500.0,0.00016438,2]
[390575183,1760091034891,-500.0,0.00016438,2]
[390575184,1760091034900,-500.0,0.00016438,2]
[390575185,1760091034909,-500.0,0.00016438,2]
[390575186,1760091034919,-500.0,0.00016438,2]
[390575187,1760091034928,-500.0,0.00016438,2]
[390575188,1760091034937,-500.0,0.00016438,2]
[390575189,1760091034946,-500.0,0.00016438,2]
[390575190,1760091034955,-500.0,0.00016438,2]
[390575191,1760091034964,-500.0,0.00016438,2]
[390575192,1760091034973,-500.0,0.00016438,2]
[390575193,1760091034982,-500.0,0.00016438,2]
[390575194,1760091034992,-501.42384181,0.00016438,2]
[390575195,1760091035001,-500.0,0.00016438,2]
[390575196,1760091035010,-500.0,0.00016438,2]
[390575197,1760091035019,-504.06460321,0.00016438,2]
[390575198,1760091035029,-500.0,0.00016438,2]
[390575199,1760091035039,-500.0,0.00016438,2]
[390575200,1760091035048,-500.89359788,0.00016438,2]
[390575201,1760091035058,-1749.37,0.00016438,2]
[390575202,1760091035067,-500.0,0.00016438,2]
[390575203,1760091035076,-500.0,0.00016438,2]
[390575204,1760091035086,-500.0,0.00016438,2]
[390575205,1760091035095,-500.0,0.00016438,2]
[390575206,1760091035105,-500.0,0.00016438,2]
[390575207,1760091035115,-500.0,0.00016438,2]
[390575208,1760091035124,-500.0,0.00016438,2]
[390575209,1760091035133,-500.0,0.00016438,2]
[390575210,1760091035142,-887.19,0.00016438,2]
[390575211,1760091035153,-500.0,0.00016438,2]
[390575212,1760091035161,-500.0,0.00016438,2]
[390575213,1760091035170,-435.40714589,0.00016438,2]
[390575214,1760091035179,-500.0,0.00016438,2]
[390575215,1760091035188,-500.0,0.00016438,2]
[390575216,1760091035196,-500.0,0.00016438,2]
[390575217,1760091035204,-500.0,0.00016438,2]
[390575218,1760091035213,-500.0,0.00016438,2]
[390575219,1760091035222,-1188.84227696,0.00016438,2]
[390575220,1760091035573,-56.52772304,0.00016438,2]
[390575221,1760091035583,-500.0,0.00016438,2]
[390575222,1760091035592,-500.0,0.00016438,2]
[390575223,1760091035601,-479.22720345,0.00016438,2]
[390575224,1760091035622,-907.20057776,0.00016438,2]
[390575225,1760091035633,-333.46923112,0.00016438,2]
[390575250,1760091038369,-848.5904708,0.00016438,2]
[390575252,1760091038382,-482.40251687,0.00016438,2]
[390575254,1760091038392,-505.18564689,0.00016438,2]
[390575256,1760091038402,-151.52098935,0.00016438,2]
[390575258,1760091038411,-500.0,0.00016438,2]
[390575260,1760091038420,-151.4776708,0.00016438,2]
[390575262,1760091038430,-1194.96,0.00016438,2]
[390575264,1760091038439,-510.83,0.00016438,2]
[390575266,1760091038448,-505.9332005,0.00016438,2]
[390575268,1760091038458,-500.43535754,0.00016438,2]
[390575269,1760091038467,-500.0,0.00016438,2]
[390575271,1760091038477,-371.6,0.00016438,2]
[390575273,1760091038487,-500.0,0.00016438,2]
[390575275,1760091038497,-636.69,0.00016438,2]
[390575278,1760091038508,-5982.98,0.00016438,2]
[390575280,1760091038517,-681.35,0.00016438,2]
[390575281,1760091038527,-500.0,0.00016438,2]
[390575283,1760091038537,-501.46118553,0.00016438,2]
[390575285,1760091038546,-500.0,0.00016438,2]
[390575287,1760091038555,-500.0,0.00016438,2]
[390575289,1760091038566,-503.41186619,0.00016438,2]
[390575291,1760091038576,-500.0,0.00016438,2]
[390575293,1760091038585,-500.0,0.00016438,2]
[390575295,1760091038594,-500.0,0.00016438,2]
[390575297,1760091038604,-500.0,0.00016438,2]
[390575299,1760091038613,-500.0,0.00016438,2]
[390575301,1760091038623,-500.0,0.00016438,2]
[390575303,1760091038633,-500.0,0.00016438,2]
[390575305,1760091038642,-500.0,0.00016438,2]
[390575307,1760091038651,-500.0,0.00016438,2]
[390575309,1760091038661,-500.0,0.00016438,2]
[390575311,1760091038670,-500.0,0.00016438,2]
[390575313,1760091038679,-5705.2,0.00016438,2]
[390575315,1760091038689,-898.84,0.00016438,2]
[390575317,1760091038698,-5035.78,0.00016438,2]
[390575319,1760091038708,-505.22502429,0.00016438,2]
[390575321,1760091038717,-500.0,0.00016438,2]
[390575323,1760091038727,-1783.34,0.00016438,2]
[390575325,1760091038736,-500.0,0.00016438,2]
[390575327,1760091038746,-754.27,0.00016438,2]
[390575329,1760091038755,-500.0,0.00016438,2]
[390575331,1760091038765,-2521.53,0.00016438,2]
[390575333,1760091038774,-2043.03,0.00016438,2]
[390575335,1760091038783,-500.0,0.00016438,2]
[390575337,1760091038793,-500.0,0.00016438,2]
[390575339,1760091038802,-500.0,0.00016438,2]
[390575341,1760091038813,-645.78,0.00016438,2]
[390575343,1760091038822,-500.0,0.00016438,2]
[390575345,1760091038831,-500.0,0.00016438,2]
[390575347,1760091038840,-500.0,0.00016438,2]
[390575349,1760091038850,-500.0,0.00016438,2]
[390575351,1760091038859,-500.0,0.00016438,2]
[390575352,1760091038868,-500.0,0.00016438,2]
[390575354,1760091038878,-500.0,0.00016438,2]
[390575356,1760091038887,-500.0,0.00016438,2]
[390575358,1760091038897,-500.0,0.00016438,2]
[390575360,1760091038906,-500.0,0.00016438,2]
[390575362,1760091038916,-500.0,0.00016438,2]
[390575364,1760091038925,-500.0,0.00016438,2]
[390575366,1760091038935,-500.0,0.00016438,2]
[390575368,1760091038945,-720.45,0.00016438,2]
[390575370,1760091038954,-564.34,0.00016438,2]
[390575372,1760091038965,-500.0,0.00016438,2]
[390575374,1760091038974,-500.0,0.00016438,2]
[390575376,1760091038983,-500.0,0.00016438,2]
[390575378,1760091038993,-487.99195088,0.00016438,2]
[390575380,1760091039003,-1232.67,0.00016438,2]
[390575382,1760091039013,-3366.4,0.00016438,2]
[390575384,1760091039023,-1064.85,0.00016438,2]
[390575386,1760091039036,-500.0,0.00016438,2]
[390575388,1760091039046,-500.0,0.00016438,2]
[390575390,1760091039056,-753.1,0.00016438,2]
[390575392,1760091039066,-500.0,0.00016438,2]
[390575394,1760091039075,-501.56289255,0.00016438,2]
[390575396,1760091039084,-577.27,0.00016438,2]
[390575398,1760091039094,-500.0,0.00016438,2]
[390575400,1760091039103,-500.0,0.00016438,2]
[390575402,1760091039112,-500.0,0.00016438,2]
[390575404,1760091039122,-500.0,0.00016438,2]
[390575406,1760091039131,-500.0,0.00016438,2]
[390575408,1760091039141,-500.0,0.00016438,2]
[390575410,1760091039150,-500.0,0.00016438,2]
[390575412,1760091039160,-514.29,0.00016438,2]
[390575414,1760091039170,-500.0,0.00016438,2]
[390575416,1760091039179,-500.0,0.00016438,2]
[390575418,1760091039189,-500.0,0.00016438,2]
[390575420,1760091039198,-500.0,0.00016438,2]
[390575421,1760091039208,-500.0,0.00016438,2]
[390575422,1760091039218,-500.0,0.00016438,2]
[390575423,1760091039228,-485.26017449,0.00016438,2]
[390575424,1760091039237,-1154.2,0.00016438,2]
[390575425,1760091039250,-749.88,0.00016438,2]
[390575426,1760091039259,-398.80233492,0.00016438,2]
[390575427,1760091039269,-500.0,0.00016438,2]
[390575428,1760091039278,-501.4714528,0.00016438,2]
[390575429,1760091039289,-505.10079148,0.00016438,2]
[390575430,1760091039298,-500.0,0.00016438,2]
[390575431,1760091039307,-604.00679623,0.00016438,2]
[390575432,1760091039319,-500.0,0.00016438,2]
[390575433,1760091039328,-500.0,0.00016438,2]
[390575434,1760091039337,-500.0,0.00016438,2]
[390575435,1760091039347,-504.42472204,0.00016438,2]
[390575436,1760091039356,-500.0,0.00016438,2]
[390575437,1760091039365,-500.0,0.00016438,2]
[390575438,1760091039374,-500.0,0.00016438,2]
[390575439,1760091039384,-500.0,0.00016438,2]
[390575440,1760091039393,-500.0,0.00016438,2]
[390575441,1760091039403,-3307.06,0.00016438,2]
[390575442,1760091039412,-500.0,0.00016438,2]
[390575443,1760091039421,-500.0,0.00016438,2]
[390575444,1760091039430,-969.0,0.00016438,2]
[390575445,1760091039440,-500.0,0.00016438,2]
[390575446,1760091039449,-500.0,0.00016438,2]
[390575447,1760091039458,-500.0,0.00016438,2]
[390575448,1760091039468,-801.85,0.00016438,2]
[390575449,1760091039477,-500.0,0.00016438,2]
[390575450,1760091039486,-799.88,0.00016438,2]
[390575451,1760091039495,-502.10397334,0.00016438,2]
[390575452,1760091039504,-500.0,0.00016438,2]
[390575453,1760091039513,-500.0,0.00016438,2]
[390575454,1760091039522,-500.0,0.00016438,2]
[390575455,1760091039533,-500.0,0.00016438,2]
[390575456,1760091039542,-2219.37,0.00016438,2]
[390575457,1760091039551,-2868.83,0.00016438,2]
[390575458,1760091039561,-2868.83,0.00016438,2]
[390575459,1760091039571,-2868.83,0.00016438,2]
[390575460,1760091039579,-2868.83,0.00016438,2]
[390575461,1760091039589,-2868.83,0.00016438,2]
[390575462,1760091039598,-2868.83,0.00016438,2]
[390575463,1760091039608,-2868.83,0.00016438,2]
[390575464,1760091039617,-2868.83,0.00016438,2]
[390575465,1760091039627,-2868.83,0.00016438,2]
[390575466,1760091039637,-500.0,0.00016438,2]
[390575467,1760091039647,-2868.83,0.00016438,2]
[390575468,1760091039656,-1644.77747319,0.00016438,2]
[390575469,1760091039671,-1224.05252681,0.00016438,2]
[390575470,1760091039680,-2868.83,0.00016438,2]
[390575471,1760091039690,-2868.83,0.00016438,2]
[390575472,1760091039701,-1607.42,0.00016438,2]
[390575473,1760091039711,-999.81,0.00016438,2]
[390575474,1760091039720,-500.0,0.00016438,2]
[390575475,1760091039730,-500.0,0.00016438,2]
[390575476,1760091039740,-500.0,0.00016438,2]
[390575477,1760091039749,-500.0,0.00016438,2]
[390575478,1760091039760,-759.79,0.00016438,2]
[390575479,1760091039770,-549.04,0.00016438,2]
[390575480,1760091039781,-562.58,0.00016438,2]
[390575481,1760091039792,-808.54,0.00016438,2]
[390575482,1760091039802,-500.0,0.00016438,2]
[390575483,1760091039811,-644.03,0.00016438,2]
[390575484,1760091039820,-500.0,0.00016438,2]
[390575485,1760091039830,-2626.97402303,0.00016438,2]
[390575486,1760091039842,-1810.99597697,0.00016438,2]
[390575487,1760091039851,-500.0,0.00016438,2]
[390575488,1760091039861,-428.41211537,0.00016438,2]
[390575489,1760091039874,-620.84788463,0.00016438,2]
[390575490,1760091039884,-301.53012738,0.00016438,2]
[390575491,1760091039893,-500.0,0.00016438,2]
[390575492,1760091039902,-500.0,0.00016438,2]
[390575493,1760091039911,-500.0,0.00016438,2]
[390575494,1760091039921,-151.0,0.00016438,2]
[390575495,1760091039930,-839.44,0.00016438,2]
[390575496,1760091039939,-151.0,0.00016438,2]
[390575498,1760091039948,-405.12478872,0.00016438,2]
[390575501,1760091039964,-94.87521128,0.00016438,2]
[390575503,1760091039974,-500.0,0.00016438,2]
[390575505,1760091039983,-152.097801,0.00016438,2]
[390575507,1760091039992,-242.152708,0.00016438,2]
[390575509,1760091040002,-500.0,0.00016438,2]
[390575511,1760091040012,-151.0,0.00016438,2]
[390575512,1760091040023,-158.605407,0.00016438,2]
[390575514,1760091040031,-281.26680641,0.00016438,2]
[390575517,1760091040042,-218.73319359,0.00016438,2]
[390575519,1760091040051,-500.0,0.00016438,2]
[390575521,1760091040061,-151.0,0.00016438,2]
[390575523,1760091040070,-151.0,0.00016438,2]
[390575525,1760091040079,-387.365418,0.00016438,2]
[390575526,1760091040089,-151.321248,0.00016438,2]
[390575528,1760091040098,-500.0,0.00016438,2]
[390575530,1760091040107,-507.69,0.00016438,2]
[390575532,1760091040117,-151.0,0.00016438,2]
[390575534,1760091040126,-387.365418,0.00016438,2]
[390575536,1760091040136,-500.0,0.00016438,2]
[390575538,1760091040146,-1797.77,0.00016438,2]
[390575540,1760091040155,-387.365418,0.00016438,2]
[390575542,1760091040164,-500.0,0.00016438,2]
[390575544,1760091040173,-387.365418,0.00016438,2]
[390575546,1760091040184,-851.5,0.00016438,2]
[390575548,1760091040193,-1909.43,0.00016438,2]
[390575550,1760091040202,-246.05984314,0.00016438,2]
[390575552,1760091040210,-531.47,0.00016438,2]
[390575554,1760091040219,-500.0,0.00016438,2]
[390575556,1760091040228,-500.0,0.00016438,2]
[390575558,1760091040240,-151.0,0.00016438,2]
[390575560,1760091040249,-151.0,0.00016438,2]
[390575562,1760091040258,-548.33,0.00016438,2]
[390575564,1760091040267,-500.0,0.00016438,2]
[390575566,1760091040276,-414.2972915,0.00016438,2]
[390575568,1760091040288,-500.0,0.00016438,2]
[390575570,1760091040298,-500.0,0.00016438,2]
[390575572,1760091040307,-500.0,0.00016438,2]
[390575574,1760091040316,-500.0,0.00016438,2]
[390575576,1760091040326,-500.0,0.00016438,2]
[390575578,1760091040335,-500.0,0.00016438,2]
[390575580,1760091040344,-595.1,0.00016438,2]
[390575582,1760091040354,-500.0,0.00016438,2]
[390575584,1760091040362,-545.94,0.00016438,2]
[390575586,1760091040371,-151.506493,0.00016438,2]
[390575588,1760091040380,-151.0,0.00016438,2]
[390575590,1760091040389,-151.0,0.00016438,2]
[390575591,1760091040398,-500.0,0.00016438,2]
[390575593,1760091040408,-1448.95,0.00016438,2]
[390575596,1760091040417,-151.0,0.00016438,2]
[390575597,1760091040426,-151.0,0.00016438,2]
[390575599,1760091040435,-500.0,0.00016438,2]
[390575600,1760091040444,-1741.21,0.00016438,2]
[390575601,1760091040453,-151.0,0.00016438,2]
[390575602,1760091040462,-500.0,0.00016438,2]
[390575603,1760091040472,-503.01,0.00016438,2]
[390575604,1760091040484,-882.0,0.00016438,2]
[390575605,1760091040493,-500.0,0.00016438,2]
[390575606,1760091040503,-500.0,0.00016438,2]
[390575607,1760091040512,-500.0,0.00016438,2]
[390575608,1760091040521,-938.91,0.00016438,2]
[390575609,1760091040531,-500.0,0.00016438,2]
[390575611,1760091040540,-1729.47,0.00016438,2]
[390575613,1760091040549,-212.949088,0.00016438,2]
[390575615,1760091040559,-204.71853021,0.00016438,2]
[390575617,1760091040568,-500.0,0.00016438,2]
[390575619,1760091040577,-212.949088,0.00016438,2]
[390575621,1760091040586,-500.0,0.00016438,2]
[390575623,1760091040597,-200.0,0.00016438,10]
[390575625,1760091040606,-200.0,0.00016438,10]
[390575627,1760091040615,-151.0,0.00016438,2]
[390575629,1760091040624,-500.0,0.00016438,2]
[390575631,1760091040633,-200.0,0.00016438,10]
[390575633,1760091040643,-212.949088,0.00016438,2]
[390575635,1760091040652,-500.0,0.00016438,2]
[390575637,1760091040660,-200.0,0.00016438,10]
[390575639,1760091040669,-200.0,0.00016438,10]
[390575641,1760091040678,-200.0,0.00016438,10]
[390575643,1760091040688,-200.0,0.00016438,10]
[390575645,1760091040697,-500.0,0.00016438,2]
[390575647,1760091040706,-818.03,0.00016438,2]
[390575649,1760091040715,-200.0,0.00016438,10]
[390575651,1760091040724,-212.949088,0.00016438,2]
[390575653,1760091040733,-200.0,0.00016438,10]
[390575655,1760091040742,-200.0,0.00016438,10]
[390575657,1760091040751,-151.0,0.00016438,2]
[390575659,1760091040760,-500.0,0.00016438,2]
[390575661,1760091040769,-500.0,0.00016438,2]
[390575663,1760091040778,-500.0,0.00016438,2]
[390575665,1760091040787,-500.0,0.00016438,2]
[390575667,1760091040796,-1000.0,0.00016438,2]
[390575669,1760091040805,-1320.65,0.0001647,2]
[390575671,1760091040815,-4702.0,0.00016473,2]
[390575673,1760091040824,-2868.83,0.00016492,2]
[390575675,1760091040833,-151.0,0.00016493,2]
[390575677,1760091040842,-882.0,0.00016493,2]
[390575679,1760091040851,-320.003172,0.000165,2]
[390575681,1760091040861,-151.0,0.000165,2]
[390575683,1760091040870,-320.003172,0.000165,2]
[390575685,1760091040879,-151.0,0.000165,2]
[390575687,1760091040888,-320.003172,0.000165,2]
[390575689,1760091040896,-320.003172,0.000165,2]
[390575691,1760091040905,-151.0,0.000165,2]
[390575693,1760091040915,-151.0,0.000165,2]
[390575695,1760091040925,-151.0,0.000165,2]
[390575697,1760091040933,-151.0,0.000165,2]
[390575699,1760091040942,-151.0,0.000165,2]
[390575701,1760091040951,-151.0,0.000165,2]
[390575703,1760091040960,-957.55260887,0.00016544,2]
[390575705,1760091040969,-294.21253277,0.00016548,2]
[390575707,1760091040978,-882.0,0.00016548,2]
[390575709,1760091040987,-151.859235,0.00016548,2]
[390575710,1760091040996,-151.418394,0.00016548,2]
[390575713,1760091041005,-151.0,0.00016548,2]
[390575715,1760091041014,-151.555572,0.00016548,2]
[390575717,1760091041023,-151.0,0.00016548,2]
[390575719,1760091041032,-277.914755,0.00016548,2]
[390575721,1760091041041,-277.914755,0.00016548,2]
[390575723,1760091041052,-277.914755,0.00016548,2]
[390575725,1760091041061,-277.914755,0.00016548,2]
[390575726,1760091041070,-151.0,0.00016548,2]
[390575728,1760091041080,-151.0,0.00016548,2]
[390575731,1760091041089,-18603.8837,0.0001657,2]
[390575732,1760091041098,-500.0,0.0001657,2]
[390575735,1760091041108,-500.0,0.0001657,2]
[390575736,1760091041117,-500.0,0.0001657,2]
[390575739,1760091041127,-500.0,0.0001657,2]
[390575740,1760091041135,-500.0,0.0001657,2]
[390575742,1760091041144,-500.0,0.0001657,2]
[390575744,1760091041153,-500.0,0.0001657,2]
[390575746,1760091041162,-500.0,0.0001657,2]
[390575748,1760091041172,-500.0,0.0001657,2]
[390575750,1760091041181,-264.1478051,0.0001657,2]
[390575752,1760091041190,-151.0,0.0001657,2]
[390575754,1760091041199,-208.468505,0.0001657,2]
[390575756,1760091041209,-151.0,0.0001657,2]
[390575758,1760091041218,-151.824686,0.0001657,2]
[390575760,1760091041227,-153.062202,0.0001657,2]
[390575762,1760091041237,-153.16741,0.0001657,2]
[390575764,1760091041257,-882.0,0.00016602,2]
[390575766,1760091041276,-2868.83,0.00016611,2]
[390575768,1760091041297,-2868.83,0.00016611,2]
[390575770,1760091041320,-2868.83,0.00016611,2]
[390575772,1760091041331,-2868.83,0.00016611,2]
[390575774,1760091041341,-2868.83,0.00016611,2]
[390575776,1760091041350,-2868.83,0.00016611,2]
[390575778,1760091041359,-2868.83,0.00016611,2]
[390575780,1760091041369,-2868.83,0.00016611,2]
[390575782,1760091041378,-2868.83,0.00016611,2]
[390575784,1760091041387,-2868.97809889,0.00016611,2]
[390575786,1760091041397,-151.0,0.00016612,2]
[390575788,1760091041406,-151.0,0.00016612,2]
[390575808,1760091041573,-151.681857,0.00016612,2]
[390575810,1760091041582,-151.0,0.00016612,2]
[390575812,1760091041591,-151.0,0.00016612,2]
[390575814,1760091041600,-151.0,0.00016612,2]
[390575816,1760091041610,-151.0,0.00016612,2]
[390575818,1760091041618,-151.0,0.00016612,2]
[390575820,1760091041627,-151.0,0.00016612,2]
[390575822,1760091041636,-151.0,0.00016612,2]
[390575824,1760091041645,-151.402919,0.00016612,2]
[390575827,1760091041655,-151.0,0.00016612,2]
[390575829,1760091041664,-152.984232,0.00016612,2]
[390575831,1760091041673,-152.003691,0.00016612,2]
[390575833,1760091041682,-151.0,0.00016612,2]
[390575835,1760091041691,-151.0,0.00016612,2]
[390575837,1760091041700,-151.0,0.00016612,2]
[390575839,1760091041710,-151.0,0.00016612,2]
[390575841,1760091041718,-151.0,0.00016612,2]
[390575843,1760091041728,-151.0,0.00016612,2]
[390575845,1760091041736,-151.0,0.00016612,2]
[390575847,1760091041746,-151.0,0.00016612,2]
[390575849,1760091041754,-151.0,0.00016612,2]
[390575851,1760091041763,-151.0,0.00016612,2]
[390575853,1760091041772,-151.0,0.00016612,2]
[390575855,1760091041781,-151.0,0.00016612,2]
[390575857,1760091041790,-151.921519,0.00016612,2]
[390575859,1760091041799,-152.357197,0.00016612,2]
[390575861,1760091041808,-151.0,0.00016612,2]
[390575863,1760091041818,-151.0,0.00016612,2]
[390575865,1760091041827,-151.0,0.00016612,2]
[390575867,1760091041836,-151.0,0.00016612,2]
[390575869,1760091041844,-151.0,0.00016612,2]
[390575871,1760091041853,-151.0,0.00016612,2]
[390575873,1760091041862,-151.0,0.00016612,2]
[390575875,1760091041872,-151.0,0.00016612,2]
[390575877,1760091041881,-151.0,0.00016612,2]
[390575879,1760091041891,-151.638751,0.00016612,2]
[390575881,1760091041900,-151.0,0.00016612,2]
[390575883,1760091041909,-151.0,0.00016612,2]
[390575884,1760091041918,-261.392589,0.00016612,2]
[390575886,1760091041927,-151.0,0.00016612,2]
[390575888,1760091041936,-151.0,0.00016612,2]
[390575890,1760091041944,-277.914755,0.00016612,2]
[390575892,1760091041954,-277.914755,0.00016612,2]
[390575894,1760091041962,-277.914755,0.00016612,2]
[390575896,1760091041972,-277.914755,0.00016612,2]
[390575898,1760091041980,-151.0,0.00016612,2]
[390575900,1760091041990,-268.853511,0.00016612,2]
[390575902,1760091041998,-320.003172,0.00016612,2]
[390575904,1760091042007,-153.139071,0.00016612,2]
[390575906,1760091042017,-320.003172,0.00016612,2]
[390575908,1760091042026,-320.003172,0.00016612,2]
[390575910,1760091042036,-320.003172,0.00016612,2]
[390575912,1760091042045,-154.141836,0.00016612,2]
[390575914,1760091042054,-151.0,0.00016612,2]
[390575916,1760091042063,-151.0,0.00016612,2]
[390575918,1760091042072,-151.0,0.00016612,2]
[390575920,1760091042081,-151.0,0.00016612,2]
[390575922,1760091042091,-151.0,0.00016612,2]
[390575924,1760091042100,-151.0,0.00016612,2]
[390575926,1760091042111,-151.0,0.00016612,2]
[390575928,1760091042120,-151.0,0.00016612,2]
[390575930,1760091042129,-387.365418,0.00016612,2]
[390575932,1760091042138,-387.365418,0.00016612,2]
[390575934,1760091042148,-387.365418,0.00016612,2]
[390575936,1760091042157,-387.365418,0.00016612,2]
[390575938,1760091042166,-151.0,0.00016612,2]
[390575940,1760091042176,-151.0,0.00016612,2]
[390575942,1760091042184,-151.0,0.00016612,2]
[390575944,1760091042193,-151.0,0.00016612,2]
[390575946,1760091042203,-151.0,0.00016612,2]
[390575948,1760091042212,-151.0,0.00016612,2]
[390575950,1760091042221,-212.949088,0.00016612,2]
[390575952,1760091042230,-212.949088,0.00016612,2]
[390575954,1760091042242,-212.949088,0.00016612,2]
[390575956,1760091042251,-212.949088,0.00016612,2]
[390575957,1760091042260,-111800.10301028,0.00016612,2]
[390575960,1760091042270,-154.856397,0.00016627,2]
[390575962,1760091042280,-151.0,0.00016627,2]
[390575964,1760091042289,-151.0,0.00016627,2]
[390575966,1760091042298,-151.0,0.00016627,2]
[390575968,1760091042307,-151.0,0.00016627,2]
[390575969,1760091042317,-151.0,0.00016627,2]
[390575971,1760091042327,-151.0,0.00016627,2]
[390575973,1760091042336,-162.8446322,0.00016627,2]
[390575975,1760091042345,-588.2885567,0.00016627,2]
[390575977,1760091042354,-595.5495834,0.00016627,2]
[390575979,1760091042364,-325.5839621,0.00016627,2]
[390575981,1760091042372,-153.0,0.00016627,2]
[390575984,1760091042383,-1185.7818006,0.00016627,2]
[390575986,1760091042392,-162.0261747,0.00016627,2]
[390575988,1760091042401,-587.9711537,0.00016627,2]
[390575990,1760091042410,-882.0,0.00016657,2]
[390575992,1760091042419,-1152.50691993,0.000167,2]